bitfinex/quotes_ETHUSD_20241018
["timestamp","ask_amount","ask_price","bid_price","bid_amount"]
[1729272068289,1.58184215,2651.1,2650.7,0.8319]
[1729272069088,1.58184215,2651.2,2650.7,0.8319]
[1729272070284,1.58184215,2651.3,2650.7,0.8319]
[1729272070810,1.58184215,2651.5,2650.7,0.8319]
[1729272071933,1.58184215,2651.4,2650.7,0.8319]
[1729272072093,1.58184215,2651.5,2650.7,0.8319]
[1729272073602,1.58184215,2651.6,2650.7,0.8319]
[1729272076460,1.58184215,2651.6,2650.8,0.377]
[1729272076766,1.66180871,2651.7,2650.9,0.8014]
[1729272077265,1.66180871,2651.7,2651.1,0.8014]
[1729272077862,0.07996656,2651.7,2651.1,0.8014]
[1729272082340,0.07996656,2651.7,2650.9,0.7888]
[1729272082341,2.11310871,2651.7,2650.9,0.7888]
[1729272082546,1.58184215,2651.3,2650.8,0.79162315]
[1729272082771,1.58184215,2651.2,2650.8,0.79162315]
[1729272083968,1.58184215,2651.1,2650.8,0.79162315]
[1729272084176,1.58184215,2651.2,2650.8,0.79162315]
[1729272084541,2.03314215,2651.1,2650.8,0.79162315]
[1729272085608,0.4513,2651.1,2650.8,0.79162315]
[1729272085746,2.03314215,2651.1,2650.8,0.79162315]
[1729272085943,2.4340001,2651.1,2650.8,0.79162315]
[1729272086544,1.58184215,2651.0,2650.8,0.79162315]
[1729272087189,1.58184215,2651.0,2650.2,3.82811752]
[1729272087190,2.03314215,2650.9,2650.2,0.7961]
[1729272087391,1.57931382,2650.8,2650.2,0.7961]
[1729272087755,2.14369178,2650.8,2650.0,50.0]
[1729272088070,1.57931382,2650.5,2650.0,50.0]
[1729272088395,1.97543733,2650.6,2650.0,50.0]
[1729272088396,1.57931382,2650.6,2650.0,50.0]
[1729272088542,3.66834226,2650.5,2650.0,50.0]
[1729272088749,1.57931382,2650.4,2650.0,50.0]
[1729272088955,1.97991894,2650.4,2650.0,50.0]
[1729272089157,2.08902844,2650.1,2650.0,50.0]
[1729272089361,0.4513,2650.1,2650.0,50.0]
[1729272090073,2.03061382,2650.3,2650.0,50.0]
[1729272090276,0.4513,2650.3,2650.0,50.0]
[1729272090443,0.89176358,2650.3,2650.0,50.0]
[1729272092154,0.4513,2650.3,2650.0,50.0]
[1729272093563,0.4513,2650.6,2650.0,50.0]
[1729272096052,0.4513,2650.6,2650.1,0.7961]
[1729272097708,1.96761271,2651.1,2650.1,0.7961]
[1729272097709,0.4513,2650.9,2650.1,0.7961]
[1729272097996,0.4513,2651.1,2650.1,0.7961]
[1729272098195,0.4513,2651.1,2650.3,0.7961]
[1729272098748,0.4513,2651.3,2650.3,0.7961]
[1729272102879,0.4513,2651.2,2650.3,0.7961]
[1729272103088,0.4513,2651.0,2650.1,0.7961]
[1729272103306,0.4513,2650.8,2650.1,0.7961]
[1729272106494,0.4513,2650.6,2650.0,50.0]
[1729272106695,3.66450337,2650.5,2650.0,50.0]
[1729272106899,0.4513,2650.4,2650.0,50.0]
[1729272107095,2.03061382,2650.4,2650.0,50.0]
[1729272107456,0.4513,2650.4,2650.0,50.0]
[1729272108596,0.20306138,2650.3,2650.0,50.0]
[1729272108794,0.4513,2650.4,2650.0,50.0]
[1729272114689,4.11580337,2650.4,2650.0,50.0]
[1729272114917,0.4513,2650.1,2650.0,50.0]
[1729272118217,0.4513,2650.1,2650.0,47.94569331]
[1729272118584,0.4513,2650.1,2650.0,47.56189331]
[1729272118791,10.71889654,2650.1,2650.0,46.04979331]
[1729272119121,11.10271413,2650.1,2650.0,46.04979331]
[1729272119322,11.10206796,2650.1,2650.0,45.45836302]
[1729272120116,11.10213342,2650.1,2650.0,45.45836302]
[1729272120328,9.13958272,2650.1,2650.0,45.45836302]
[1729272120836,9.13958272,2650.1,2650.0,44.97618302]
[1729272121476,9.13958272,2650.1,2650.0,43.02105302]
[1729272121681,14.21300106,2650.1,2650.0,33.39741212]
[1729272121912,11.85724337,2650.1,2650.0,33.39741212]
[1729272122089,11.92200942,2650.1,2650.0,33.39741212]
[1729272122913,14.27644586,2650.1,2650.0,33.39741212]
[1729272123123,14.27647982,2650.1,2650.0,32.89741212]
[1729272123327,11.92200942,2650.1,2650.0,32.89741212]
[1729272123497,14.27609603,2650.1,2650.0,32.89741212]
[1729272124002,10.61159266,2650.1,2650.0,32.89741212]
[1729272124306,8.25750605,2650.1,2650.0,32.89741212]
[1729272124510,10.61160016,2650.1,2650.0,32.89741212]
[1729272124697,10.61160016,2650.1,2650.0,32.14941212]
[1729272125692,10.61171177,2650.1,2650.0,31.7627996]
[1729272125898,10.61171177,2650.1,2650.0,31.36950541]
[1729272126429,14.27621514,2650.1,2650.0,31.36950541]
[1729272126593,14.27621514,2650.1,2650.0,29.86530541]
[1729272126783,11.92200942,2650.1,2650.0,22.21707049]
[1729272127010,14.27681454,2650.1,2650.0,22.21707049]
[1729272127211,11.92200942,2650.1,2650.0,22.21707049]
[1729272127407,14.27738726,2650.1,2650.0,22.21707049]
[1729272127627,14.27740337,2650.1,2650.0,22.21707049]
[1729272127844,11.92200942,2650.1,2650.0,22.21707049]
[1729272128032,14.27738836,2650.1,2650.0,22.21707049]
[1729272128334,11.92200942,2650.1,2650.0,22.21707049]
[1729272128542,8.25750605,2650.1,2650.0,21.83644061]
[1729272129297,10.61365056,2650.1,2650.0,21.83644061]
[1729272129837,10.61366185,2650.1,2650.0,21.83644061]
[1729272130237,8.25750605,2650.1,2650.0,21.83644061]
[1729272131234,11.92200942,2650.1,2650.0,21.32924061]
[1729272131436,8.25750605,2650.1,2650.0,21.32924061]
[1729272133156,8.25750605,2650.1,2650.0,20.35924061]
[1729272134272,10.61355676,2650.1,2650.0,20.35924061]
[1729272134672,10.61334688,2650.1,2650.0,20.35924061]
[1729272135287,8.25750605,2650.1,2650.0,20.35924061]
[1729272135497,10.61313639,2650.1,2650.0,20.35924061]
[1729272138138,4.28950605,2650.1,2650.0,20.35924061]
[1729272138410,2.08585451,2650.1,2650.0,20.35924061]
[1729272138712,0.06476605,2650.1,2650.0,20.35924061]
[1729272139376,1.63455451,2650.1,2650.0,20.35924061]
[1729272139576,0.06476605,2650.1,2650.0,20.35924061]
[1729272140309,0.06476605,2650.1,2650.0,21.16234061]
[1729272142125,9.82729451,2650.1,2650.0,18.50324061]
[1729272142321,8.25750605,2650.1,2650.0,18.10324061]
[1729272142620,8.25750605,2650.1,2650.0,17.72424061]
[1729272143313,11.00580131,2650.1,2650.0,17.72424061]
[1729272143511,14.67030468,2650.1,2650.0,10.07600569]
[1729272143700,15.63361919,2650.1,2650.0,10.07600569]
[1729272144608,11.92200942,2650.1,2650.0,10.07600569]
[1729272144892,15.16843319,2650.1,2650.0,10.07600569]
[1729272145511,11.92200942,2650.1,2650.0,10.07600569]
[1729272145687,11.92200942,2650.1,2650.0,4.83147267]
[1729272146429,8.25750605,2650.1,2650.0,4.83147267]
[1729272147282,11.92200942,2650.1,2650.0,4.83147267]
[1729272147484,8.25750605,2650.1,2650.0,4.83147267]
[1729272148099,11.92200942,2650.1,2650.0,4.83147267]
[1729272148423,14.18600942,2650.1,2650.0,1.05789267]
[1729272148628,14.41947767,2650.1,2650.0,1.05789267]
[1729272148928,18.08398104,2650.1,2650.0,1.05789267]
[1729272149426,18.08989927,2650.1,2650.0,1.05789267]
[1729272150010,14.4253959,2650.1,2650.0,1.05789267]
[1729272151038,18.08989927,2650.1,2650.0,1.05789267]
[1729272151438,14.18600942,2650.1,2650.0,2.67e-06]
[1729272151743,3.77526,2648.9,2647.7,0.8062]
[1729272151908,6.13670069,2648.8,2647.8,3.77672]
[1729272152112,6.13670069,2648.8,2647.3,0.4462598]
[1729272152113,1.96834952,2648.7,2648.3,4.58219]
[1729272152498,1.96834952,2648.6,2648.3,4.58219]
[1729272152946,1.96834952,2648.5,2648.3,0.8062]
[1729272153112,1.96834952,2648.6,2648.3,0.8062]
[1729272153506,1.96834952,2648.7,2648.3,0.8062]
[1729272154735,1.96834952,2648.6,2648.3,0.8062]
[1729272156441,1.96834952,2648.5,2648.3,0.8062]
[1729272156939,6.5302906,2648.8,2648.3,0.8062]
[1729272156940,1.96834952,2648.6,2648.3,0.8062]
[1729272157306,1.96834952,2648.5,2648.3,0.74368601]
[1729272157734,2.7549906,2648.8,2648.3,0.74368601]
[1729272157735,1.96834952,2648.6,2648.3,0.74368601]
[1729272159249,1.96834952,2648.5,2648.3,0.74368601]
[1729272159416,3.77586,2648.4,2648.3,0.74368601]
[1729272159741,6.13787943,2648.4,2648.3,0.74368601]
[1729272160340,6.14113967,2648.4,2648.3,0.74368601]
[1729272160641,2.36527967,2648.4,2648.3,0.74368601]
[1729272161042,2.36527967,2648.4,2648.3,0.64368601]
[1729272161249,3.77586,2648.4,2648.3,0.64368601]
[1729272161684,6.53130933,2648.6,2648.3,0.64368601]
[1729272162189,3.77586,2648.4,2648.3,0.64368601]
[1729272162367,3.77586,2648.4,2646.6,7.29]
[1729272162579,3.77586,2648.4,2646.7,0.729]
[1729272162580,1.97113862,2648.0,2646.7,0.729]
[1729272162772,1.97113862,2648.0,2646.7,1.1752598]
[1729272163175,1.97113862,2648.0,2646.7,0.729]
[1729272163359,1.97113862,2647.9,2646.7,0.729]
[1729272163695,1.97113862,2647.4,2646.7,0.729]
[1729272163990,3.77631,2648.1,2646.4,0.1280077]
[1729272163991,1.97113862,2647.6,2646.5,0.783]
[1729272164291,1.97113862,2647.4,2646.5,0.783]
[1729272164654,1.97113862,2647.3,2646.5,0.783]
[1729272164861,1.97113862,2647.4,2646.5,0.783]
[1729272165289,1.97113862,2647.3,2646.5,0.783]
[1729272165487,1.97113862,2647.5,2646.5,0.783]
[1729272165693,1.97113862,2647.4,2646.5,0.783]
[1729272166062,1.97113862,2647.3,2646.5,0.783]
[1729272166270,5.63564199,2647.2,2646.5,0.783]
[1729272166477,3.66450337,2646.8,2646.5,0.783]
[1729272166663,1.97113862,2646.8,2646.5,0.783]
[1729272166865,1.97113862,2646.6,2646.5,0.783]
[1729272167094,1.97113862,2646.8,2646.5,0.783]
[1729272167594,1.97113862,2647.0,2646.5,0.783]
[1729272167779,5.63564199,2647.0,2646.5,0.783]
[1729272167979,1.97113862,2646.9,2646.5,0.783]
[1729272168345,0.6138,2646.9,2646.4,0.1280077]
[1729272168550,5.63564199,2647.0,2646.4,0.1280077]
[1729272168551,1.97113862,2647.0,2646.5,0.8125]
[1729272168782,1.97113862,2647.2,2646.5,0.8125]
[1729272169055,1.97113862,2647.3,2646.5,0.8125]
[1729272169508,1.96503723,2647.4,2646.5,0.8125]
[1729272170012,3.77729,2647.4,2646.5,0.8125]
[1729272170715,3.77744,2647.3,2646.5,0.8125]
[1729272171111,3.77758,2647.2,2646.5,0.8125]
[1729272172009,3.77751,2647.3,2646.5,0.8125]
[1729272172210,9.4068706,2647.4,2646.5,0.8125]
[1729272172414,1.96503723,2647.5,2646.5,0.8125]
[1729272172571,0.59125269,2647.2,2646.5,0.8125]
[1729272177605,4.36891269,2647.2,2646.5,0.8125]
[1729272177789,3.77772,2647.1,2646.5,0.8125]
[1729272177990,4.36882269,2647.2,2646.5,0.8125]
[1729272178633,0.59125269,2647.2,2646.5,0.8125]
[1729272182393,3.77771,2647.1,2646.5,0.8125]
[1729272182831,3.77802,2646.9,2646.4,0.1280077]
[1729272183905,3.77802,2646.9,2646.5,0.7769]
[1729272184310,7.5561,2646.9,2646.4,0.1280077]
[1729272184638,3.77802,2646.9,2646.4,0.1280077]
[1729272185128,4.36886269,2647.2,2646.5,0.7769]
[1729272185339,0.59125269,2647.2,2646.5,0.7769]
[1729272192107,3.77658,2647.9,2646.5,0.7769]
[1729272192455,0.59111199,2647.4,2646.5,0.7769]
[1729272202651,4.36840199,2647.4,2646.5,0.7769]
[1729272203466,3.77765,2647.2,2646.5,0.7769]
[1729272203627,0.6138,2647.2,2646.5,0.7769]
[1729272203833,3.77818,2646.8,2646.5,0.7769]
[1729272204074,3.77795,2647.0,2646.4,0.1280077]
[1729272204441,3.778,2646.9,2646.4,0.1280077]
[1729272204833,3.77822,2646.8,2646.4,0.1280077]
[1729272205027,4.39202,2646.8,2646.4,0.1280077]
[1729272205257,3.77801,2646.9,2646.4,0.1280077]
[1729272205957,3.77816,2646.8,2646.4,0.1280077]
[1729272206536,3.778,2646.9,2646.4,0.1280077]
[1729272206740,3.77825,2646.8,2646.4,0.1280077]
[1729272206944,3.77843,2646.6,2646.4,0.1280077]
[1729272207180,4.39237,2646.5,2646.4,0.1280077]
[1729272211189,7.65828629,2646.5,2646.4,0.1280077]
[1729272211382,4.39237,2646.5,2646.4,0.1280077]
[1729272211543,10.88849143,2646.6,2646.4,0.1280077]
[1729272211744,7.04424363,2646.6,2646.4,0.1280077]
[1729272211978,3.77857,2646.5,2646.4,0.1280077]
[1729272212179,3.83469827,2646.5,2646.4,0.1280077]
[1729272212964,2.81966882,2646.5,2646.4,0.1280077]
[1729272213246,2.42471942,2646.5,2646.4,0.1280077]
[1729272214187,0.05612827,2646.5,2646.4,0.1280077]
[1729272214505,2.4245865,2646.5,2646.4,0.1280077]
[1729272214861,0.05612827,2646.5,2646.4,0.1280077]
[1729272215887,6.59782594,2646.5,2646.4,0.1280077]
[1729272216094,2.81925594,2646.5,2646.4,0.1280077]
[1729272216399,0.05612827,2646.5,2646.4,0.1280077]
[1729272217064,2.42421469,2646.5,2646.4,0.1280077]
[1729272217785,0.05612827,2646.5,2646.4,0.9320077]
[1729272218086,2.42421469,2646.5,2646.4,0.9320077]
[1729272218674,0.05612827,2646.5,2646.4,0.9320077]
[1729272219244,2.42421469,2646.5,2646.4,0.9320077]
[1729272219541,0.05612827,2646.5,2646.4,0.9320077]
[1729272221808,2.42400896,2646.5,2646.4,0.9320077]
[1729272222675,0.05612827,2646.5,2646.4,0.9320077]
[1729272230849,0.05612827,2646.5,2646.4,0.1280077]
[1729272231043,2.42421888,2646.5,2646.4,0.1280077]
[1729272232163,0.05612827,2646.5,2646.4,0.1280077]
[1729272232353,2.42421888,2646.5,2646.4,0.1280077]
[1729272233121,0.05612827,2646.5,2646.4,0.9154077]
[1729272233530,2.02952045,2646.5,2646.4,0.9154077]
[1729272233776,0.05612827,2646.5,2646.4,0.9154077]
[1729272250012,2.36805371,2647.3,2646.4,0.9154077]
[1729272250013,1.97337809,2647.4,2646.4,0.9154077]
[1729272250169,2.36805371,2647.7,2646.4,0.9154077]
[1729272250170,1.97337809,2647.7,2646.4,0.9154077]
[1729272250371,1.97337809,2647.8,2646.4,0.9154077]
[1729272252276,1.9711128,2647.9,2646.4,0.9154077]
[1729272253427,2.56207915,2648.0,2646.4,0.9154077]
[1729272254513,1.9711128,2648.3,2646.6,0.7629]
[1729272254814,0.59091616,2648.3,2646.6,0.7629]
[1729272255017,2.6410128,2648.4,2646.6,0.7629]
[1729272255189,1.9711128,2648.3,2646.6,0.7629]
[1729272255373,0.6699,2648.4,2646.6,0.7629]
[1729272255374,2.6410128,2648.4,2646.6,0.7629]
[1729272256518,0.6699,2648.4,2646.8,0.7738]
[1729272257611,0.6699,2648.4,2646.9,0.7738]
[1729272257916,2.6410128,2648.4,2647.1,0.7738]
[1729272258417,0.6699,2648.4,2647.1,0.7738]
[1729272260117,0.6699,2648.6,2647.1,0.7738]
[1729272262114,7.47,2648.7,2647.1,0.7738]
[1729272263407,0.6699,2648.7,2647.1,0.7738]
[1729272265281,4.25660591,2648.7,2647.1,0.7738]
[1729272265480,0.6699,2648.6,2647.1,0.7738]
[1729272266317,4.44548,2648.6,2647.1,0.7738]
[1729272266520,3.77558,2648.6,2647.1,0.7738]
[1729272266723,0.6699,2648.5,2647.1,0.7738]
[1729272268626,0.6699,2648.5,2647.0,0.80638]
[1729272268774,0.6699,2648.5,2647.1,0.7823]
[1729272270579,3.77588,2648.4,2647.1,0.7823]
[1729272270791,4.33440337,2648.3,2647.1,0.7823]
[1729272271000,8.11042337,2648.3,2647.1,0.7823]
[1729272271196,0.6699,2648.2,2647.1,0.7823]
[1729272271420,4.44605,2648.2,2647.1,0.7823]
[1729272271793,0.6699,2648.2,2647.1,0.7823]
[1729272273448,2.63616009,2648.2,2647.1,0.7823]
[1729272273603,0.6699,2648.2,2647.1,0.7823]
[1729272273949,2.63616009,2648.2,2647.1,0.7823]
[1729272275004,6.41232009,2648.2,2647.1,0.7823]
[1729272275197,1.96626009,2648.1,2647.1,0.7823]
[1729272275509,1.96626009,2648.0,2647.1,0.7823]
[1729272275971,0.6699,2647.8,2647.1,0.7823]
[1729272276115,2.63835499,2647.8,2647.1,0.7823]
[1729272276510,1.96845499,2647.7,2647.1,0.7823]
[1729272276916,1.96845499,2647.6,2646.5,0.7654]
[1729272277201,1.96845499,2647.5,2646.5,0.7654]
[1729272277844,1.96845499,2647.5,2646.5,1.64247818]
[1729272278142,1.96845499,2647.6,2646.6,0.7654]
[1729272278643,1.96845499,2647.5,2646.6,0.7654]
[1729272278934,3.03204599,2647.8,2646.6,0.7654]
[1729272278935,1.96845499,2647.6,2646.6,0.7654]
[1729272280713,2.36214599,2647.8,2646.6,0.7654]
[1729272280714,1.96845499,2647.8,2646.6,0.7654]
[1729272281805,1.96845499,2647.8,2646.8,0.7665]
[1729272283228,1.96845499,2647.7,2646.8,0.7665]
[1729272284448,1.96845499,2647.6,2646.8,0.7665]
[1729272285444,1.97280159,2647.6,2646.8,0.7665]
[1729272286301,2.36736191,2647.9,2646.8,0.7665]
[1729272286302,1.97280159,2647.7,2646.8,0.7665]
[1729272286501,1.97280159,2647.5,2646.8,0.7665]
[1729272287312,1.97280159,2647.3,2646.8,0.7665]
[1729272287904,1.97280159,2647.4,2646.8,0.7665]
[1729272289950,1.97403002,2647.4,2646.8,0.7665]
[1729272290147,1.97403002,2647.3,2646.8,0.7665]
[1729272292007,1.97403002,2647.4,2646.8,0.7665]
[1729272293450,2.36883603,2647.6,2646.8,0.7665]
[1729272293451,1.97403002,2647.3,2646.8,0.7665]
[1729272294577,1.97523324,2647.3,2646.8,0.7665]
[1729272295033,3.04017988,2647.6,2646.8,0.7665]
[1729272295034,1.97523324,2647.2,2646.8,0.7665]
[1729272295965,2.37027988,2647.4,2646.8,0.7665]
[1729272295966,1.97523324,2647.1,2646.8,0.7665]
[1729272296322,1.97523324,2647.0,2646.8,0.7665]
[1729272296957,1.97523324,2646.9,2646.8,0.7665]
[1729272297746,1.97523324,2647.0,2646.8,0.7665]
[1729272299321,1.97470491,2647.1,2646.8,0.7665]
[1729272299654,1.97470491,2647.2,2646.8,0.7665]
[1729272300074,1.97470491,2647.1,2646.8,0.7665]
[1729272300422,1.97470491,2647.0,2646.8,0.7665]
[1729272300621,1.97470491,2647.1,2646.8,0.7665]
[1729272300890,1.97470491,2647.2,2646.8,0.7665]
[1729272301527,1.97470491,2647.1,2646.8,0.7665]
[1729272301727,1.97470491,2647.2,2646.8,0.7665]
[1729272302333,2.01406588,2647.1,2646.8,0.7665]
[1729272302560,2.01378113,2647.1,2646.8,0.7665]
[1729272304357,0.03936097,2647.1,2646.8,0.7665]
[1729272307297,1.97484392,2647.0,2646.8,0.7665]
[1729272308281,1.97484392,2646.9,2646.5,0.8181]
[1729272310357,1.97484392,2647.0,2646.5,0.8181]
[1729272310790,1.97484392,2646.9,2646.5,0.8181]
[1729272311990,1.97608558,2646.9,2646.5,0.8181]
[1729272314819,2.41066367,2647.1,2646.5,0.8181]
[1729272314820,1.97608558,2647.0,2646.6,0.0301819]
[1729272315112,2.01544655,2647.1,2646.7,0.7862]
[1729272315424,1.97608558,2647.0,2646.7,0.7862]
[1729272316528,1.97768873,2647.0,2646.7,0.7862]
[1729272316890,2.0170497,2647.1,2646.7,0.7862]
[1729272317428,0.03936097,2647.1,2646.7,0.7862]
[1729272317728,2.0170497,2647.1,2646.7,0.7862]
[1729272317891,1.97768873,2647.0,2646.7,0.7862]
[1729272318090,1.97768873,2646.8,2646.7,0.7862]
[1729272318735,2.37322648,2647.0,2646.7,0.7862]
[1729272319039,1.97810865,2646.8,2646.7,0.7862]
[1729272319394,2.37322648,2647.0,2646.7,0.7862]
[1729272319807,1.97827345,2646.8,2646.7,0.7862]
[1729272320129,2.37322648,2647.0,2646.7,0.7862]
[1729272320292,2.37392659,2647.0,2646.7,0.7862]
[1729272320498,1.97845118,2646.8,2646.7,0.7862]
[1729272320913,2.37392659,2647.0,2646.7,0.7862]
[1729272321289,1.97839353,2646.8,2646.7,0.7862]
[1729272321517,2.37407223,2647.0,2646.7,0.7862]
[1729272321819,2.37407223,2647.0,2646.4,0.1280077]
[1729272321820,2.37407223,2647.0,2646.5,0.7744]
[1729272322136,1.97862731,2646.7,2646.5,0.7744]
[1729272322737,1.97862731,2646.6,2646.4,0.1280077]
[1729272322891,2.37407223,2646.6,2646.4,0.1280077]
[1729272323090,0.6699,2646.8,2646.4,0.1280077]
[1729272323091,2.37407223,2646.5,2646.4,0.1280077]
[1729272324342,2.37407223,2646.6,2646.4,0.1280077]
[1729272325830,2.37302068,2646.5,2646.4,0.1280077]
[1729272326005,3.04292068,2646.5,2646.4,0.1280077]
[1729272326405,3.04244884,2646.5,2646.4,0.1280077]
[1729272326630,0.6699,2646.5,2646.4,0.1280077]
[1729272327933,10.7128825,2646.9,2646.4,0.1280077]
[1729272327934,2.76852413,2646.7,2646.4,0.1280077]
[1729272328151,2.37202264,2646.5,2646.4,0.1280077]
[1729272328308,2.37202264,2646.7,2646.4,0.1280077]
[1729272328498,1.9764512,2646.5,2646.4,0.8813077]
[1729272328699,1.9764512,2646.6,2646.4,0.8813077]
[1729272332452,1.9764512,2646.5,2646.4,0.8813077]
[1729272335141,1.97691815,2646.5,2646.4,0.1280077]
[1729272336472,3.04220178,2646.7,2646.4,0.1280077]
[1729272338056,2.37230178,2646.6,2646.4,0.1280077]
[1729272339783,2.37260272,2646.6,2646.4,0.1280077]
[1729272342489,2.37260272,2646.6,2646.4,0.9279077]
[1729272342642,2.37260272,2646.7,2646.4,0.9279077]
[1729272342838,1.9770891,2646.5,2646.4,0.9279077]
[1729272343278,2.37260272,2646.7,2646.4,0.9279077]
[1729272343495,2.37260272,2646.6,2646.4,0.9279077]
[1729272343642,2.37260272,2646.7,2646.4,0.9279077]
[1729272343842,2.37260272,2646.6,2646.4,0.9279077]
[1729272344067,2.37260272,2646.7,2646.4,0.9279077]
[1729272344586,2.37245133,2646.6,2646.4,0.9279077]
[1729272345586,2.37245133,2646.7,2646.4,0.9279077]
[1729272345882,2.37245133,2646.6,2646.4,0.9279077]
[1729272346359,2.37245133,2646.6,2646.4,0.1280077]
[1729272347221,3.04235133,2646.6,2646.4,0.1280077]
[1729272347363,2.37245133,2646.5,2646.4,0.1280077]
[1729272347703,0.6699,2646.6,2646.4,0.1280077]
[1729272348480,3.43775988,2646.6,2646.4,0.1280077]
[1729272348696,2.3725952,2646.5,2646.4,0.1280077]
[1729272349548,2.37245748,2646.5,2646.4,0.1280077]
[1729272350517,2.37249018,2646.5,2646.4,0.1280077]
[1729272350697,0.6699,2646.6,2646.4,0.1280077]
[1729272351210,3.43775988,2646.6,2646.4,0.1280077]
[1729272351508,2.37264227,2646.5,2646.4,0.1280077]
[1729272352419,2.37269679,2646.5,2646.4,0.1280077]
[1729272353222,2.76785988,2646.7,2646.4,0.1280077]
[1729272354326,3.43775988,2646.6,2646.4,0.1280077]
[1729272354394,4.33440337,2646.5,2646.4,0.1280077]
[1729272354809,0.6699,2646.5,2646.4,0.1280077]
[1729272355617,3.93943449,2646.5,2646.4,0.1280077]
[1729272357376,0.6699,2646.5,2646.4,0.1280077]
[1729272357685,3.4360159,2646.5,2646.4,0.1280077]
[1729272357886,0.6699,2646.5,2646.4,0.1280077]
[1729272362305,3.93700226,2646.7,2646.4,0.1280077]
[1729272362511,2.76633002,2646.5,2646.4,0.1280077]
[1729272363329,3.93700226,2646.7,2646.4,0.1280077]
[1729272364928,2.76714172,2646.5,2646.4,0.1280077]
[1729272366110,2.76714172,2646.6,2646.4,0.1280077]
[1729272366542,2.76783855,2646.5,2646.4,0.1280077]
[1729272371258,2.76855716,2646.5,2646.4,0.1280077]
[1729272373752,2.76855716,2646.6,2646.4,0.1280077]
[1729272376040,2.76799775,2646.6,2646.4,0.1280077]
[1729272376950,2.76799775,2646.5,2646.4,0.1280077]
[1729272377544,0.6699,2646.6,2646.4,0.1280077]
[1729272377754,0.5913369,2646.5,2646.4,0.1280077]
[1729272383019,1.2612369,2646.5,2646.4,0.1280077]
[1729272384477,4.93645959,2646.5,2646.4,0.1280077]
[1729272385072,1.2612369,2646.5,2646.4,0.1280077]
[1729272386172,4.93645959,2646.5,2646.4,0.1280077]
[1729272390783,8.71502959,2646.5,2646.4,0.1280077]
[1729272392295,8.76147878,2646.5,2646.4,0.1280077]
[1729272392500,4.98290878,2646.5,2646.4,0.1280077]
[1729272393496,8.76147878,2646.5,2646.4,0.1280077]
[1729272393726,12.66157081,2646.5,2646.4,0.1280077]
[1729272394003,12.68642525,2646.5,2646.4,0.1280077]
[1729272394996,8.90785525,2646.5,2646.4,0.1280077]
[1729272395996,6.87827462,2646.5,2646.4,0.1280077]
[1729272396606,8.52391668,2646.5,2646.4,0.1280077]
[1729272396788,6.87827462,2646.5,2646.4,0.1280077]
[1729272398107,8.52391668,2646.5,2646.4,0.1280077]
[1729272398266,12.30248668,2646.5,2646.4,0.1280077]
[1729272401381,10.65684462,2646.5,2646.4,0.1280077]
[1729272402610,12.30248668,2646.5,2646.4,0.1280077]
[1729272406738,12.35454021,2646.5,2646.4,0.1280077]
[1729272406897,12.35454021,2646.5,2645.2,0.75]
[1729272406898,1.64564206,2645.5,2645.2,0.75]
[1729272407082,4.41847083,2645.3,2645.2,0.75]
[1729272407282,1.64564206,2645.3,2645.2,0.75]
[1729272407509,4.41689574,2645.3,2645.2,0.75]
[1729272407721,2.77125368,2645.3,2645.2,0.75]
[1729272408030,4.41689574,2645.4,2645.2,0.75]
[1729272408383,2.3744916,2645.3,2645.2,0.75]
[1729272409431,1.64564206,2645.3,2645.0,0.75]
[1729272409624,4.01947658,2645.1,2645.0,0.75]
[1729272409960,4.01947658,2645.1,2644.5,0.75]
[1729272409961,2.31554206,2645.1,2644.5,0.75]
[1729272410128,4.01906884,2644.6,2644.5,0.75]
[1729272410307,2.37342678,2644.6,2644.5,0.75]
[1729272410508,4.01906884,2644.7,2644.5,0.75]
[1729272410713,1.64564206,2644.6,2644.5,0.75]
[1729272410910,4.01694106,2644.7,2644.5,0.75]
[1729272411098,1.64564206,2644.6,2644.5,0.75]
[1729272411885,2.371299,2644.8,2644.5,0.75]
[1729272412286,2.371299,2644.7,2643.9,0.7757]
[1729272412485,1.973524,2644.5,2643.9,0.7757]
[1729272413415,1.973524,2644.6,2643.9,0.7757]
[1729272414056,1.973524,2644.7,2643.9,0.7757]
[1729272414483,4.35101588,2645.1,2643.4,0.02259534]
[1729272414484,1.973524,2644.8,2644.1,0.7757]
[1729272415355,1.973524,2644.9,2644.1,0.7757]
[1729272415578,1.97124496,2644.9,2644.1,0.7757]
[1729272415748,1.97124496,2644.9,2644.2,0.02592583]
[1729272415937,1.97124496,2644.9,2644.3,0.8274]
[1729272416376,1.97124496,2644.8,2644.3,0.8274]
[1729272416665,1.97124496,2644.9,2644.3,0.8274]
[1729272419639,1.97124496,2645.0,2644.3,0.8274]
[1729272419847,1.97124496,2644.9,2644.3,0.8274]
[1729272420236,1.96890178,2644.9,2644.3,0.8274]
[1729272421285,1.96890178,2645.0,2644.3,0.8274]
[1729272422191,1.96890178,2645.1,2644.3,0.8274]
[1729272422371,0.06562664,2645.5,2644.3,0.8274]
[1729272422372,1.96890178,2645.3,2644.3,0.8274]
[1729272422745,1.96890178,2645.2,2644.3,0.8274]
[1729272422946,5.65001766,2645.1,2644.3,0.8274]
[1729272423215,1.96890178,2645.0,2644.3,0.8274]
[1729272423488,5.64908761,2644.9,2644.3,0.8274]
[1729272423784,1.96797173,2644.8,2644.3,0.8274]
[1729272424147,2.63787173,2644.8,2644.3,0.8274]
[1729272425212,1.96797173,2644.7,2644.3,0.8274]
[1729272425392,2.63787173,2644.8,2644.3,0.8274]
[1729272425578,1.96797173,2644.7,2644.3,0.8274]
[1729272426186,2.63787173,2644.8,2644.3,0.8274]
[1729272427078,1.96797173,2644.7,2644.3,0.8274]
[1729272428006,1.96717791,2644.7,2644.3,0.8274]
[1729272428513,2.63707791,2644.8,2644.3,0.8274]
[1729272429009,1.96717791,2644.8,2644.3,0.8274]
[1729272430185,3.68111588,2644.7,2644.3,0.8274]
[1729272431116,0.6699,2644.6,2643.9,0.8053]
[1729272432580,2.63707791,2644.6,2643.9,0.8053]
[1729272432730,5.6471649,2644.5,2643.9,0.8053]
[1729272432885,4.35101588,2644.1,2643.7,0.75]
[1729272433797,1.64855874,2643.9,2643.7,0.75]
[1729272435812,0.6699,2644.1,2643.7,0.75]
[1729272438040,1.26177829,2644.1,2643.7,0.75]
[1729272440723,0.6699,2644.1,2643.7,0.75]
[1729272444041,0.6699,2644.1,2643.4,0.02259534]